bitfinex/quotes_ETHUSD_20251017
["timestamp","ask_amount","ask_price","bid_price","bid_amount"]
[1760726235564,0.1606,3855.9,3854.9,0.2233]
[1760726235971,2.59323298,3856.2,3855.0,0.49464033]
[1760726236201,2.59323298,3856.2,3855.3,2.5938285]
[1760726236386,0.0452057,3856.4,3855.4,0.02593764]
[1760726236816,2.63831732,3856.4,3855.6,2.59362406]
[1760726236973,0.30903743,3856.4,3855.4,0.02593764]
[1760726237171,2.6383068,3856.4,3855.2,0.4687]
[1760726237374,2.5932881,3856.2,3855.4,2.59373315]
[1760726237677,0.07121162,3856.4,3854.9,0.2233]
[1760726238001,2.59344861,3855.9,3855.0,2.59403372]
[1760726238200,0.16,3855.8,3855.0,2.5939735]
[1760726238404,0.16,3855.8,3855.2,2.59388705]
[1760726238715,0.16,3856.0,3855.2,2.59389004]
[1760726238921,0.16,3856.0,3854.9,0.2233]
[1760726239176,0.0996,3855.9,3854.4,0.2233]
[1760726239325,1.81519768,3855.9,3854.5,0.4946437]
[1760726239513,2.59369787,3855.5,3854.6,2.62024593]
[1760726240018,0.0996,3855.9,3854.4,0.2233]
[1760726240313,0.12560592,3855.8,3854.4,0.2233]
[1760726240519,0.56029484,3855.8,3854.5,0.0259437]
[1760726240728,2.59357595,3855.7,3855.0,2.59398932]
[1760726240892,2.59357595,3855.7,3854.5,0.4687]
[1760726240893,2.59375384,3855.5,3854.7,2.59422884]
[1760726241085,0.04520676,3855.8,3854.8,2.59415859]
[1760726241288,0.04520676,3855.8,3854.5,0.4687]
[1760726241289,0.02600592,3855.7,3854.5,0.4687]
[1760726241528,0.002,3855.4,3855.0,2.59398929]
[1760726241823,0.002,3855.4,3854.6,0.4399]
[1760726242133,2.59581156,3855.4,3854.6,2.59425377]
[1760726242288,2.59408441,3855.0,3854.4,0.2233]
[1760726242625,2.59383186,3855.3,3854.4,0.2233]
[1760726242626,2.5940143,3855.1,3854.4,0.2233]
[1760726243048,2.59404536,3855.0,3854.4,0.2233]
[1760726243254,2.59432231,3854.6,3854.0,0.2233]
[1760726243529,2.79781302,3854.9,3854.5,0.1296]
[1760726243839,3.11461864,3854.9,3854.5,0.1296]
[1760726244139,0.52050562,3854.9,3854.5,0.1296]
[1760726244339,0.52050562,3854.9,3854.0,0.2233]
[1760726244340,2.59383851,3855.3,3854.8,0.1296]
[1760726244498,0.04721354,3855.4,3854.8,0.1296]
[1760726244691,2.59383186,3855.3,3854.8,0.1296]
[1760726244921,0.70923579,3855.2,3854.8,0.1296]
[1760726245305,2.64104231,3855.4,3854.0,0.2233]
[1760726245306,0.04721354,3855.4,3855.1,0.1296]
[1760726245529,0.002,3855.4,3855.1,0.4399]
[1760726245728,0.002,3855.4,3855.3,0.1296]
[1760726246049,0.2016,3854.9,3854.0,0.2233]
[1760726246247,0.1047,3855.4,3854.8,0.1296]
[1760726246435,0.002,3855.4,3854.8,0.1296]
[1760726246753,0.002,3855.4,3854.1,0.4399]
[1760726246754,0.002,3855.4,3855.2,0.1296]
[1760726246952,0.002,3855.4,3854.5,0.4399]
[1760726247138,0.002,3855.4,3855.3,0.1296]
[1760726249152,0.002,3855.4,3855.3,2.59383186]
[1760726249346,0.002,3855.4,3855.3,3.03373186]
[1760726249720,0.002,3855.4,3855.3,3.05967017]
[1760726250576,0.002,3855.4,3855.3,3.03373186]
[1760726250742,0.002,3855.4,3855.3,3.59650056]
[1760726251260,0.002,3855.4,3855.3,5.35043887]
[1760726251460,0.002,3855.4,3855.3,5.32450056]
[1760726252244,0.002,3855.4,3855.3,4.76173186]
[1760726252447,0.002,3855.4,3855.1,1.728]
[1760726252782,0.002,3855.4,3854.7,2.1679]
[1760726253074,0.002,3855.4,3854.8,2.5941683]
[1760726253642,0.002,3855.4,3854.8,1.728]
[1760726253861,0.002,3855.4,3854.0,0.2233]
[1760726254065,0.002,3855.4,3854.3,0.4399]
[1760726254263,0.002,3855.4,3854.7,2.59422489]
[1760726254549,0.002,3855.4,3854.8,2.59416]
[1760726254879,0.12500592,3855.3,3854.2,2.59450554]
[1760726255081,0.099,3855.3,3854.1,2.59462824]
[1760726255264,0.099,3855.3,3854.2,2.59454714]
[1760726255265,2.59404729,3855.0,3854.2,2.59454714]
[1760726255466,0.1996,3854.9,3854.0,2.81800471]
[1760726255645,0.1996,3854.9,3854.2,2.59453805]
[1760726255982,2.59420687,3854.8,3854.1,2.59457886]
[1760726256184,2.59420687,3854.8,3854.0,0.2233]
[1760726256389,2.79375662,3854.9,3854.0,0.2233]
[1760726256539,2.5941705,3854.8,3853.6,1.728]
[1760726256739,2.5941705,3854.8,3853.0,17.76472895]
[1760726256740,0.1996,3854.9,3853.1,2.59525928]
[1760726256956,2.59431667,3854.6,3853.3,0.99683176]
[1760726257188,2.59448738,3854.4,3853.5,2.59498392]
[1760726257490,0.1,3854.6,3853.3,0.99683176]
[1760726257703,2.59488287,3853.8,3853.0,0.001]
[1760726258016,0.2079,3853.7,3853.0,0.001]
[1760726258181,0.2079,3853.7,3853.1,2.59524983]
[1760726258383,0.2079,3853.7,3853.0,0.001]
[1760726258579,2.80283318,3853.7,3853.0,0.32669336]
[1760726258883,0.2079,3853.7,3853.0,0.001]
[1760726259083,0.2079,3853.7,3853.6,0.1296]
[1760726260008,0.1296,3854.2,3853.6,0.1296]
[1760726260181,2.59454053,3854.3,3853.8,0.1296]
[1760726260381,2.80057412,3853.9,3853.8,0.1296]
[1760726260581,0.2058,3853.9,3853.8,0.1296]
[1760726260817,2.80057412,3853.9,3853.8,0.1296]
[1760726261016,2.80057412,3853.9,3853.1,2.59529721]
[1760726261017,0.2058,3853.9,3853.2,2.59519377]
[1760726261201,0.2058,3853.9,3853.8,0.1296]
[1760726261400,2.80057412,3853.9,3853.8,0.1296]
[1760726261575,0.2058,3853.9,3853.6,0.1296]
[1760726261912,2.59490878,3853.7,3853.6,0.1296]
[1760726262115,2.69805482,3853.8,3853.6,0.1296]
[1760726262775,0.2058,3853.9,3853.6,0.1296]
[1760726263719,2.59486317,3853.8,3853.6,0.1296]
[1760726264205,0.309,3853.9,3853.6,0.1296]
[1760726264608,0.1296,3854.2,3853.6,0.1296]
[1760726264796,0.04522187,3854.4,3853.8,2.72439428]
[1760726265002,0.04522187,3854.4,3854.1,0.1296]
[1760726265309,0.002,3855.8,3854.3,0.2206]
[1760726265520,2.59391132,3855.2,3854.4,0.02594437]
[1760726265719,0.002,3855.8,3854.3,15.20694307]
[1760726265720,0.12770592,3855.4,3854.3,0.2206]
[1760726265923,0.12770592,3855.4,3853.5,1.728]
[1760726265924,2.59425199,3854.7,3853.8,2.59481476]
[1760726266123,2.59425199,3854.7,3853.3,0.4399]
[1760726266124,0.1643,3854.6,3853.3,0.4399]
[1760726266310,2.59437021,3854.5,3853.7,2.59490514]
[1760726266694,2.59444945,3854.4,3853.3,0.4399]
[1760726266907,2.59441552,3854.5,3853.4,0.23885]
[1760726267115,0.1643,3854.6,3853.4,0.23885]
[1760726267296,0.1643,3854.6,3854.1,2.5946028]
[1760726267519,0.1643,3854.6,3854.1,2.59458511]
[1760726267716,0.1637,3854.9,3854.3,2.59450238]
[1760726268027,0.1637,3854.9,3854.1,2.81523257]
[1760726268215,1.728,3855.0,3854.2,2.62050069]
[1760726268393,0.1029,3855.4,3854.4,2.59440099]
[1760726268597,1.728,3855.2,3854.6,2.59425672]
[1760726269206,1.728,3855.3,3854.6,2.59430291]
[1760726269514,0.1625,3854.7,3854.1,0.32551326]
[1760726269705,0.1625,3854.7,3853.6,0.4399]
[1760726269899,2.5943964,3854.5,3853.8,2.59479233]
[1760726270107,2.59445251,3854.4,3853.6,0.4399]
[1760726270718,2.59445251,3854.4,3853.7,2.59489991]
[1760726271031,2.59452004,3854.3,3853.6,0.4399]
[1760726271258,0.62108244,3854.3,3853.1,0.6605]
[1760726271537,2.59489656,3853.8,3853.1,0.2206]
[1760726272103,0.2089,3853.9,3853.1,2.81589445]
[1760726272323,0.2089,3853.9,3853.2,2.59524551]
[1760726272526,0.1022,3854.3,3853.2,0.4442]
[1760726272717,2.63966582,3854.4,3853.4,2.59506155]
[1760726273032,2.9302024,3854.4,3853.2,3.03944551]
[1760726273335,2.59450483,3854.3,3853.4,2.59509584]
[1760726273552,0.1032,3854.3,3853.2,0.4442]
[1760726273732,2.59486189,3853.8,3853.0,0.001]
[1760726273908,0.02600592,3853.9,3853.0,0.001]
[1760726274246,2.59510067,3853.5,3853.0,0.001]
[1760726274601,1.8905,3854.7,3853.0,0.001]
[1760726274602,0.2132,3853.4,3853.0,0.001]
[1760726274802,2.59517815,3853.3,3853.0,0.001]
[1760726275007,2.8083219,3853.4,3853.0,0.001]
[1760726275319,0.2132,3853.4,3853.1,0.1296]
[1760726275726,2.59520088,3853.3,3853.1,0.1296]
[1760726276237,2.90733457,3853.4,3853.1,0.1296]
[1760726276540,2.59519228,3853.3,3853.1,0.1296]
[1760726276854,2.59531286,3853.1,3853.0,0.001]
[1760726277233,2.69431286,3853.1,3853.0,0.001]
[1760726278147,4.44831878,3853.1,3853.0,0.001]
[1760726278521,17.53182476,3853.1,3853.0,0.001]
[1760726278718,19.32583115,3853.1,3853.0,0.001]
[1760726279046,6.91849415,3853.1,3853.0,0.001]
[1760726279245,4.82944992,3853.1,3853.0,0.001]
[1760726279414,12.45623292,3853.1,3853.0,0.001]
[1760726280040,11.36246558,3853.1,3853.0,0.001]
[1760726280246,4.87469958,3853.1,3853.0,0.001]
[1760726281059,4.77569958,3853.1,3853.0,0.001]
[1760726281364,5.18199423,3853.1,3853.0,0.001]
[1760726281657,2.64056252,3853.1,3853.0,0.001]
[1760726282028,2.76556844,3853.1,3853.0,0.001]
[1760726282428,2.73956252,3853.1,3853.0,0.001]
[1760726282859,2.76556844,3853.1,3853.0,0.001]
[1760726283065,3.49576659,3853.1,3853.0,0.001]
[1760726283228,12.15125067,3853.1,3853.0,0.001]
[1760726283433,9.16260067,3853.1,3853.0,0.001]
[1760726284291,27.76409132,3853.1,3853.0,0.001]
[1760726284844,27.15669432,3853.1,3853.0,0.001]
[1760726285037,22.08359532,3853.1,3853.0,0.001]
[1760726285358,19.72557232,3853.1,3853.0,0.001]
[1760726285532,19.39041532,3853.1,3853.0,0.001]
[1760726285733,16.06097632,3853.1,3853.0,0.001]
[1760726285934,12.52050732,3853.1,3853.0,0.001]
[1760726286373,22.06217232,3853.1,3853.0,0.001]
[1760726286539,37.34355323,3853.1,3853.0,0.001]
[1760726287341,41.44501423,3853.1,3853.0,0.001]
[1760726287978,26.02103739,3853.1,3853.0,0.001]
[1760726288339,8.19571232,3853.1,3853.0,0.001]
[1760726289277,18.52226932,3853.1,3853.0,0.001]
[1760726289461,18.87682532,3853.1,3853.0,0.001]
[1760726289772,18.51493732,3853.1,3853.0,0.001]
[1760726290378,5.60495532,3853.1,3853.0,0.001]
[1760726290540,19.73807432,3853.1,3853.0,0.001]
[1760726290747,14.32931032,3853.1,3853.0,0.001]
[1760726291362,21.58065432,3853.1,3853.0,0.001]
[1760726291579,27.83447132,3853.1,3853.0,0.001]
[1760726292143,27.83447132,3853.1,3851.4,0.001]
[1760726292144,2.59612139,3851.9,3851.4,0.001]
[1760726292371,23.60578939,3851.9,3851.4,0.001]
[1760726292773,23.12204846,3851.9,3851.4,0.001]
[1760726293178,22.26987846,3851.9,3851.4,0.001]
[1760726293360,4.36938146,3851.9,3851.4,0.001]
[1760726293555,8.18446726,3851.9,3851.4,0.001]
[1760726294278,8.28346726,3851.9,3851.4,0.001]
[1760726294483,13.02333226,3851.9,3851.4,0.001]
[1760726294850,9.15283126,3851.9,3851.4,0.001]
[1760726295382,22.95865126,3851.9,3851.4,0.001]
[1760726295598,20.45838912,3851.9,3851.4,0.001]
[1760726295806,15.26353612,3851.9,3851.4,0.001]
[1760726295975,5.19051812,3851.9,3851.4,0.001]
[1760726296173,5.14525805,3851.9,3851.5,0.4302]
[1760726297572,24.29575105,3851.9,3851.4,0.001]
[1760726297772,5.14525805,3851.9,3851.4,0.4312]
[1760726298311,4.73142925,3851.9,3851.4,0.4312]
[1760726298606,4.73142925,3851.9,3851.8,0.4312]
[1760726298905,4.68142925,3851.9,3851.8,0.4312]
[1760726300217,4.77668683,3851.9,3851.8,0.4312]
[1760726300380,4.77668683,3851.9,3851.8,0.001]
[1760726301115,4.77668683,3851.9,3851.8,0.4312]
[1760726301310,4.36937897,3851.9,3851.8,0.4312]
[1760726301904,1.77325758,3851.9,3851.8,0.4312]
[1760726302406,4.36937897,3851.9,3851.8,0.4312]
[1760726303018,1.77325758,3851.9,3851.8,0.4312]
[1760726303374,2.856631,3853.7,3852.1,2.59593158]
[1760726303606,0.04524676,3852.8,3852.3,0.1296]
[1760726303808,0.04524676,3852.8,3852.6,0.1296]
[1760726304108,2.59571706,3852.5,3852.4,0.4457]
[1760726305474,2.59514151,3853.4,3852.4,0.4457]
[1760726305707,2.59553932,3852.8,3852.4,0.4457]
[1760726306002,2.72505963,3852.9,3852.4,0.78420635]
[1760726306207,2.59543565,3853.0,3852.5,0.4457]
[1760726306378,2.59543565,3853.0,3852.5,0.5753]
[1760726306572,2.72492531,3853.1,3852.9,0.2138]
[1760726306779,2.59538022,3853.0,3852.9,0.2138]
[1760726307511,2.59538022,3853.0,3852.9,0.6595]
[1760726308609,0.04524199,3853.4,3852.9,0.6595]
[1760726308823,0.04524199,3853.4,3853.1,0.1296]
[1760726308984,0.04524199,3853.4,3853.2,0.4457]
[1760726309175,0.04524199,3853.4,3853.3,0.4457]
[1760726309578,0.04524199,3853.4,3853.1,0.1296]
[1760726309579,2.6403528,3853.4,3853.1,0.1296]
[1760726309875,0.1296,3853.1,3852.2,0.7891]
[1760726310088,2.59571836,3852.5,3852.2,0.3434]
[1760726310297,2.59578444,3852.4,3852.3,0.4457]
[1760726310709,2.5957148,3852.6,3852.3,0.4457]
[1760726311150,2.59572902,3852.5,3852.4,0.4457]
[1760726312000,2.59572902,3852.5,3852.2,0.3434]
[1760726312001,2.59585182,3852.3,3852.2,0.2138]
[1760726312401,0.1316,3852.6,3852.2,0.6595]
[1760726312713,0.1316,3852.6,3852.3,0.4457]
[1760726313048,2.59578444,3852.4,3852.3,0.4457]
[1760726313710,2.59585182,3852.3,3852.2,0.2138]
[1760726315233,2.59605399,3852.0,3851.9,0.1296]
[1760726315444,2.72564496,3852.1,3851.8,0.001]
[1760726315647,2.59609802,3852.0,3851.8,0.4467]
[1760726315943,2.59612139,3851.9,3851.8,0.001]
[1760726316442,2.59606096,3852.0,3851.8,0.4467]
[1760726316638,2.72561311,3852.1,3851.9,0.4457]
[1760726316840,2.59605399,3852.0,3851.9,0.4457]
[1760726317145,0.1296,3852.1,3851.8,0.001]
[1760726317433,2.59579121,3852.4,3852.0,0.4457]
[1760726317627,4.32379121,3852.4,3852.3,0.2138]
[1760726317796,1.728,3852.4,3852.3,0.2138]
[1760726318002,1.728,3852.4,3852.3,0.6595]
[1760726318725,4.32378444,3852.4,3852.3,0.6595]
[1760726318920,4.32378444,3852.4,3852.3,0.2138]
[1760726319314,1.728,3852.4,3852.3,0.2138]
[1760726319511,1.728,3852.4,3852.3,0.6595]
[1760726319714,1.728,3852.4,3851.9,0.1296]
[1760726319715,2.59602886,3852.1,3851.9,0.1296]
[1760726319915,2.59605399,3852.0,3851.9,0.5753]
[1760726320144,4.32405399,3852.0,3851.9,0.5753]
[1760726320341,1.728,3852.0,3851.9,0.5753]
[1760726320545,4.32405399,3852.0,3851.9,0.5753]
[1760726320847,4.32405399,3852.0,3851.9,0.1296]
[1760726321065,4.32412139,3851.9,3851.8,0.001]
[1760726321552,1.728,3851.9,3851.8,0.001]
[1760726321751,0.1296,3852.1,3851.8,0.4467]
[1760726321921,0.0452491,3852.3,3851.8,0.5763]
[1760726322123,4.3691041,3852.3,3852.2,0.2138]
[1760726322522,1.7732491,3852.3,3852.2,0.2138]
[1760726323146,1.7732491,3852.3,3852.2,0.6595]
[1760726323731,1.728,3852.3,3852.2,0.6595]
[1760726324127,4.32385182,3852.3,3852.2,0.6595]
[1760726324333,1.728,3852.3,3852.2,0.6595]
[1760726325420,1.728,3852.3,3852.2,0.99801906]
[1760726325620,0.002,3852.6,3852.2,0.7891]
[1760726325923,0.002,3853.4,3852.9,2.59544758]
[1760726326127,0.002,3853.4,3852.9,3.11454567]
[1760726326352,0.002,3853.4,3852.9,3.56024567]
[1760726327254,0.002,3853.4,3852.9,0.96479809]
[1760726327459,0.002,3853.4,3852.9,0.4457]
[1760726328545,1.73,3853.4,3852.9,0.4457]
[1760726328962,0.002,3853.4,3852.9,0.4457]
[1760726329633,0.002,3853.4,3852.9,3.04114758]
[1760726329839,0.002,3853.4,3852.9,0.4457]
[1760726332355,0.002,3853.4,3852.9,3.04114758]
[1760726332675,0.002,3853.4,3852.9,3.06710205]
[1760726332823,0.002,3853.4,3852.9,3.6333654]
[1760726334467,0.002,3853.4,3852.9,1.01196335]
[1760726334674,0.002,3853.4,3852.9,3.04114758]
[1760726335536,0.002,3853.4,3852.9,3.06710205]
[1760726335761,0.002,3853.4,3852.9,3.19670205]
[1760726336144,0.002,3853.4,3852.9,3.17074758]
[1760726340270,0.002,3853.4,3852.9,3.04114758]
[1760726340441,0.002,3853.4,3852.9,3.63077226]
[1760726340645,0.002,3853.4,3852.9,3.60481779]
[1760726342048,0.002,3853.4,3852.9,1.00937021]
[1760726342360,0.002,3853.4,3852.2,0.2138]
[1760726342579,0.103,3853.3,3852.3,0.4735]
[1760726342882,0.002,3853.4,3852.5,2.59570849]
[1760726343068,2.59713823,3853.4,3852.4,2.59577403]
[1760726343280,1.73,3853.4,3852.3,3.06931086]
[1760726343446,0.2094,3852.9,3852.3,0.32831109]
[1760726343755,0.2094,3852.9,3852.2,0.2138]
[1760726344165,0.2094,3852.9,3852.2,2.80971086]
[1760726344394,0.103,3853.3,3852.2,0.2138]
[1760726344564,0.002,3853.4,3852.3,0.4735]
[1760726344883,0.2084,3852.9,3851.9,0.4745]
[1760726345050,2.80386785,3852.9,3852.0,0.30716413]
[1760726345250,0.2084,3852.9,3851.9,0.4745]
[1760726345451,2.59551832,3852.8,3851.9,0.4745]
[1760726346074,1.728,3852.8,3851.9,3.07062012]
[1760726346380,2.59552981,3852.8,3851.9,0.001]
[1760726346748,0.13110592,3852.8,3851.9,0.001]
[1760726346953,2.59578699,3852.4,3851.9,0.001]
[1760726347454,2.70096988,3852.3,3851.9,0.001]
[1760726347968,0.1051,3852.2,3851.9,0.001]
[1760726348170,2.59600604,3852.1,3851.9,0.001]
[1760726348561,1.728,3852.2,3851.9,0.001]
[1760726348562,2.70115399,3852.0,3851.9,0.001]
[1760726348767,4.42915399,3852.0,3851.9,0.001]
[1760726349659,5.13166411,3852.0,3851.9,0.001]
[1760726351088,5.02656411,3852.0,3851.9,0.001]
[1760726351293,1.728,3852.0,3851.9,0.001]
[1760726352064,4.32405399,3852.0,3851.9,0.001]
[1760726352267,4.42915399,3852.0,3851.9,0.001]
[1760726352795,4.32405399,3852.0,3851.9,0.001]
[1760726352977,4.42915399,3852.0,3851.9,0.001]
[1760726353488,1.728,3852.0,3851.9,0.001]
[1760726354482,1.728,3852.0,3851.9,0.1306]
[1760726354796,1.728,3852.0,3851.9,0.6041]
[1760726356182,1.728,3852.0,3851.9,0.1306]
[1760726357697,4.32405399,3852.0,3851.9,0.1306]
[1760726357868,1.728,3852.0,3851.9,0.1306]
[1760726358584,1.728,3852.0,3851.9,0.6041]
[1760726358786,1.728,3852.0,3851.9,3.39075877]
[1760726358979,1.728,3852.0,3851.9,3.52035877]
[1760726359172,1.728,3852.0,3851.9,0.92423738]
[1760726359377,1.728,3852.0,3851.9,0.45073738]
[1760726359699,1.728,3852.0,3851.9,0.1306]
[1760726360865,4.42915399,3852.0,3851.9,0.1306]
[1760726361979,4.32405399,3852.0,3851.9,0.1306]
[1760726363698,4.32405399,3852.0,3851.9,0.001]
[1760726363912,4.42915399,3852.0,3851.9,0.001]
[1760726364110,5.27539062,3852.0,3851.9,0.001]
[1760726365288,5.32063619,3852.0,3851.9,0.001]
[1760726365496,5.27539062,3852.0,3851.9,0.001]
[1760726366182,11.73539062,3852.0,3851.9,0.001]
[1760726368699,11.78064418,3852.0,3851.9,0.001]
[1760726370710,10.96007562,3852.0,3851.9,0.001]
[1760726371186,10.82930755,3852.0,3851.9,0.001]
[1760726371507,4.36930755,3852.0,3851.9,0.001]
[1760726373484,4.49890755,3852.0,3851.9,0.001]
[1760726374303,1.90285356,3852.0,3851.9,0.001]
[1760726374484,4.36930755,3852.0,3851.9,0.431]
[1760726374691,4.36930755,3852.0,3851.9,0.001]
[1760726375711,4.49890755,3852.0,3851.9,0.001]
[1760726375920,5.98549706,3852.0,3851.9,0.001]
[1760726376106,5.95949114,3852.0,3851.9,0.001]
[1760726377429,14.41652314,3852.0,3851.9,0.001]
[1760726377787,13.14178077,3852.0,3851.9,0.001]
[1760726377993,10.30687621,3852.0,3851.9,0.001]
[1760726378391,16.30515221,3852.0,3851.9,0.001]
[1760726378587,2.59639101,3851.5,3851.4,1e-08]
[1760726378804,20.00411434,3851.5,3851.4,1e-08]
[1760726379005,20.10921434,3851.5,3851.4,1e-08]
[1760726379206,20.51654612,3851.5,3851.4,1e-08]
[1760726380345,34.64506412,3851.5,3851.4,1e-08]
[1760726381124,23.77387135,3851.5,3851.4,1e-08]
[1760726381311,23.05200535,3851.5,3851.4,1e-08]
[1760726383000,20.56180935,3851.5,3851.4,1e-08]
[1760726383221,24.94830135,3851.5,3851.4,1e-08]
[1760726385226,31.40830135,3851.5,3851.4,1e-08]
[1760726385423,16.24784134,3851.5,3851.4,1e-08]
[1760726386624,16.55028429,3851.5,3851.4,1e-08]
[1760726387576,41.86134934,3851.5,3851.4,1e-08]
[1760726387753,42.19711885,3851.5,3851.4,1e-08]
[1760726387917,41.86134934,3851.5,3851.4,1e-08]
[1760726388320,10.02174411,3851.5,3851.4,1e-08]
[1760726388826,20.37240521,3851.5,3851.4,1e-08]
[1760726389040,32.90956621,3851.5,3851.4,1e-08]
[1760726389252,29.79900621,3851.5,3851.4,1e-08]
[1760726389827,31.82674821,3851.5,3851.4,1e-08]
[1760726390828,40.23063892,3851.5,3851.4,1e-08]
[1760726391157,36.94616292,3851.5,3851.4,1e-08]
[1760726391550,34.78009892,3851.5,3851.4,1e-08]
[1760726391950,36.94835292,3851.5,3851.4,1e-08]
[1760726392860,17.81322226,3851.2,3850.6,0.001]
[1760726393063,20.77198183,3851.2,3850.6,0.001]
[1760726393427,4.32466069,3851.1,3850.6,0.001]
[1760726393628,17.71132269,3851.1,3850.6,0.001]
[1760726393930,4.32493042,3850.7,3850.6,0.001]
[1760726394162,19.34124952,3850.7,3850.6,0.001]
[1760726394461,20.69673311,3850.7,3850.6,0.001]
[1760726395436,21.14939854,3850.7,3850.6,0.001]
[1760726397876,21.10413174,3850.7,3850.6,0.001]
[1760726399576,6.08781264,3850.7,3850.6,0.4694]
[1760726399778,4.32493042,3850.7,3850.6,0.4694]
[1760726400139,4.37019792,3850.7,3850.6,0.4694]
[1760726401157,4.37019792,3850.7,3850.6,0.001]
[1760726401358,4.37019792,3850.7,3850.6,0.4694]
[1760726401683,5.71290257,3850.7,3850.6,0.001]
[1760726401888,5.71290257,3850.7,3850.6,0.4694]
[1760726403171,5.71290257,3850.7,3850.6,0.001]
[1760726403579,5.71290257,3850.7,3850.6,0.4348]
[1760726404175,5.71290257,3850.7,3850.6,0.001]
[1760726404379,5.71290257,3850.7,3850.6,0.4348]
[1760726404692,5.71290257,3850.7,3850.6,0.001]
[1760726405191,6.12030256,3850.7,3850.6,0.001]
[1760726406176,6.12030256,3850.7,3850.6,0.4348]
[1760726406494,6.12030256,3850.7,3850.6,0.001]
[1760726406699,6.12030256,3850.7,3850.6,0.4348]
[1760726407462,4.77759791,3850.7,3850.6,0.4348]
[1760726407708,4.77759791,3850.7,3850.6,0.001]
[1760726408085,4.77759791,3850.7,3850.6,0.4348]
[1760726408460,4.77759791,3850.7,3850.6,0.001]
[1760726410762,4.77759791,3850.7,3849.3,0.1296]
[1760726410763,2.59726767,3850.2,3849.7,0.4338]
[1760726411069,2.59767248,3849.6,3849.5,0.2364]
[1760726411278,4.32567248,3849.6,3849.5,0.6702]
[1760726411593,1.8576,3849.6,3849.5,0.6702]
[1760726411806,1.728,3849.6,3849.5,0.6702]
[1760726412495,4.32567248,3849.6,3849.5,0.6702]
[1760726412878,1.728,3849.6,3849.5,0.6702]
[1760726413372,4.32567248,3849.6,3849.5,0.6702]
[1760726414595,4.32573996,3849.5,3849.3,0.6702]
[1760726414797,4.45533996,3849.5,3849.3,0.2364]
[1760726414969,4.48134588,3849.5,3849.3,0.2364]
[1760726415291,2.77261738,3849.5,3849.3,0.2364]
[1760726415598,3.65319577,3849.5,3849.3,0.2364]
[1760726415813,3.60791835,3849.5,3849.3,0.2364]
[1760726416013,5.33591835,3849.5,3849.4,0.4348]
[1760726416214,4.45533996,3849.5,3849.4,0.4348]
[1760726416517,4.45533996,3849.5,3849.4,0.001]
[1760726416907,4.45533996,3849.5,3849.4,0.4348]
[1760726418497,4.45533996,3849.5,3849.4,0.001]
[1760726419084,4.32573996,3849.5,3849.4,0.001]
[1760726419288,6.84369128,3849.5,3849.4,0.001]
[1760726420020,6.88897146,3849.5,3849.4,0.001]
[1760726420607,0.04528018,3849.5,3849.4,0.4348]
[1760726421114,2.59757098,3849.8,3849.4,0.4348]
[1760726421317,0.04527312,3850.1,3849.5,0.02597739]
[1760726421520,0.04527312,3850.1,3849.6,0.4338]
[1760726422100,2.59686956,3850.8,3849.6,0.4338]
[1760726422298,0.002,3851.0,3850.7,0.2163]
[1760726422837,0.002,3851.0,3850.8,0.46936862]
[1760726423008,0.002,3851.0,3850.8,0.4434]
[1760726423718,0.002,3851.0,3850.8,3.04021038]
[1760726424088,0.002,3851.0,3850.9,3.04019555]
[1760726424415,0.002,3851.0,3850.9,1.02874191]
[1760726424583,0.002,3851.0,3850.9,0.4434]
[1760726426389,0.002,3851.0,3850.9,3.04019555]
[1760726426590,0.002,3851.0,3850.9,0.4434]
[1760726427138,0.002,3851.0,3850.9,0.46936795]
[1760726427294,0.002,3851.0,3850.9,3.0661635]
[1760726427493,0.002,3851.0,3850.9,3.6541094]
[1760726427917,0.002,3851.0,3850.9,1.0313459]
[1760726428110,0.002,3851.0,3850.9,3.04019555]
[1760726429020,0.002,3851.0,3850.9,0.573]
[1760726430710,0.002,3851.0,3850.9,3.04019555]
[1760726430932,0.002,3851.0,3850.9,3.0661635]
[1760726432341,0.002,3851.0,3850.9,3.04019555]
[1760726432517,0.002,3851.0,3850.9,3.65150115]
[1760726434149,0.002,3851.0,3850.9,3.6255332]
[1760726434348,0.002,3851.0,3850.9,3.65150115]
[1760726436347,0.002,3851.0,3850.9,3.6255332]
[1760726436524,0.002,3851.0,3850.9,5.3535332]
[1760726440546,0.002,3851.0,3850.9,3.6255332]
[1760726440719,0.002,3851.0,3850.9,3.7551332]
[1760726440925,0.002,3851.0,3850.9,3.3117332]
[1760726441120,0.002,3851.0,3850.9,0.1296]
[1760726441324,0.002,3851.0,3850.9,2.72639555]
[1760726441753,0.002,3851.0,3850.9,3.16979555]
[1760726441953,0.002,3851.0,3850.9,2.72639555]
[1760726442732,0.002,3851.0,3850.9,2.7523635]
[1760726442949,0.002,3851.0,3850.9,3.28295399]
[1760726443152,0.002,3851.0,3850.9,3.75232194]
[1760726443851,0.002,3851.0,3850.9,3.72635399]
[1760726445729,0.002,3851.0,3850.9,3.28295399]
[1760726447227,0.002,3851.0,3850.9,0.1296]
[1760726447561,0.002,3851.0,3850.9,3.1957635]
[1760726448058,0.002,3851.0,3850.9,2.72639555]
[1760726450679,0.002,3851.0,3850.9,3.16979555]
[1760726450872,0.002,3851.0,3850.9,2.72639555]
[1760726451029,0.002,3851.0,3850.9,3.3030679]
[1760726451935,0.002,3851.0,3850.9,0.70627235]
[1760726452142,0.002,3851.0,3850.9,0.1296]
[1760726452561,0.1017,3851.0,3850.9,0.1296]
[1760726452965,0.002,3851.0,3850.9,0.1296]
[1760726453965,2.59872812,3851.0,3850.9,0.1296]
[1760726454228,5.36979425,3851.0,3849.6,0.4445]